[Event "Azerbaijan-ch 1st League 2025"]
[Site "Baku"]
[Date "2025.01.08"]
[Round "3.18"]
[White "Azimov, Yasin"]
[Black "Imranli, Kenan"]
[Result "1-0"]
[Annotator "NA RC COMBH"]
[ECO "E09"]
[WhiteElo "1880"]
[BlackElo "1758"]
[PlyCount "57"]
[EventDate "2025.01.05"]
[EventType "swiss"]
[EventCountry "AZE"]
[SourceTitle "playchess.com"]
[Source "ChessBase"]
[SourceQuality "1"]
[TimeControl "40/5400+30:1800+30"]

1. d4 {[%emt 0:00:11]} d5 {[%emt 0:00:24]} 2. c4 {[%emt 0:00:12]} e6 {[%emt 0:00:03]} 3. Nf3 {[%emt 0:00:20]} Nf6 {[%emt 0:00:06]} 4. g3 {[%emt 0:00:11]} c6 {[%emt 0:03:06]} 5. Qc2 {[%emt 0:01:41]} Be7 {[%emt 0:01:21]} 6. Bg2 {[%emt 0:00:24]} O-O {[%emt 0:00:24]} 7. O-O {[%emt 0:00:12]} Re8 {[%emt 0:03:08]} 8. Nbd2 {[%emt 0:01:16]} Nbd7 {[%emt 0:00:59]} 9. e4 {[%emt 0:00:38]} dxe4 {[%emt 0:01:31]} 10. Nxe4 {[%emt 0:00:04]} Nxe4 {[%emt 0:00:43]} 11. Qxe4 {[%emt 0:00:03]} Nf6 {[%emt 0:00:07]} 12. Qe2 {[%emt 0:02:22]} Bd7 {[%emt 0:11:44] E09: Closed Catalan: Main Line: 7 Qc2 c6 8 Nbd2.} 13. Ne5 {[%emt 0:04:50]} Qc7 {[%emt 0:05:13]} 14. Bf4 {[%emt 0:03:42]} Bd6 {[%emt 0:00:39]} 15. Rad1 {[%emt 0:00:43]} Rad8 {[%emt 0:04:13]} 16. c5 {[%emt 0:06:27]} Bxe5 {[%emt 0:00:14]} 17. Bxe5 {[%emt 0:00:02]} Qa5 {[%emt 0:00:24] [#]} 18. Bxf6 {[%emt 0:02:00]} (18. Rd3 $1 $18) 18... gxf6 {[%emt 0:00:11]} 19. Qg4+ {[%emt 0:00:10]} Kh8 {[%emt 0:00:43]} 20. Qh4 {[%emt 0:00:34]} Kg7 {[%emt 0:01:50]} 21. Rd3 {[%emt 0:04:21]} Rc8 {[%emt 0:03:41]} (21... Rb8 $16 22. Qg4+ Kh8) 22. g4 $16 {[%emt 0:05:15]} (22. Qg4+ $18 Kh8 23. Ra3) 22... Qb5 {[%emt 0:10:27]} 23. Rf3 {[%emt 1:06:22]} f5 {[%emt 0:04:33]} 24. gxf5 {[%emt 0:00:00]} exf5 {[%emt 0:01:25]} 25. Rg3+ {[%emt 0:00:00]} Kf8 {[%emt 0:00:07]} 26. Qh6+ {[%emt 0:00:00]} Ke7 {[%emt 0:00:19]} 27. Re1+ {[%emt 0:00:00]} Be6 {[%emt 0:02:37]} 28. Rxe6+ {[%emt 0:00:00]} Kd7 {[%emt 0:00:10]} 29. Re7+ {[%emt 0:00:00]} 1-0

[Event "Azerbaijan-ch 1st League 2025"]
[Site "Baku"]
[Date "2025.01.09"]
[Round "4.1"]
[White "Ahmadov, Fariz"]
[Black "Atakishiyev, Elmar"]
[Result "0-1"]
[Annotator "TA"]
[ECO "B50"]
[WhiteElo "2224"]
[BlackElo "2408"]
[PlyCount "124"]
[EventDate "2025.01.05"]
[EventType "swiss"]
[EventCountry "AZE"]
[SourceTitle "playchess.com"]
[Source "ChessBase"]
[SourceQuality "1"]
[TimeControl "40/5400+30:1800+30"]

{[%evp 13,124,-20,-12,-40,-27,-26,-14,-20,-22,-16,-22,-25,-23,-39,-34,-36,-45,-60,-35,-55,-50,-69,-56,-52,-45,-55,-62,-65,-60,-75,-68,-96,-84,-97,-66,-91,0,-95,0,-79,-31,-124,0,-116,-116,-110,-108,-108,-115,-111,-118,-112,0,-115,0,-111,-121,-109,-95,-118,-102,-140,-141,-141,-145,-145,-145,-143,-141,-134,-141,-141,-132,-135,-120,-122,-122,-176,-130,-129,-118,-179,-162,-255,-247,-253,-251,-221,-136,-127,-143,-202,-194,-874,-860,-889,-875,-825,-815,-817,-808,-1281,-1150,-29955,-29937,-12842,-10261,-29985,-29986,-29989,-29990,-29990,-29983]} 1. e4 {[%emt 0:01:05]} c5 {[%emt 0:00:14]} 2. Nf3 {[%emt 0:00:05]} d6 {[%emt 0:00:24]} 3. e5 {[%emt 0:00:47]} Nc6 {[%emt 0:01:42]} 4. exd6 {[%emt 0:01:56]} Bg4 {[%emt 0:02:15]} 5. Nc3 {[%emt 0:08:08]} Nf6 {[%emt 0:05:46]} 6. Be2 {[%emt 0:01:27]} e6 {[%emt 0:03:52]} 7. d3 {[%emt 0:08:30]} Bxd6 {[%emt 0:08:49]} 8. Ne4 {[%emt 0:00:13]} Nxe4 {[%emt 0:04:34]} 9. dxe4 {[%emt 0:00:09]} Qc7 {[%emt 0:00:10]} 10. c3 {[%emt 0:01:40]} Rd8 {[%emt 0:01:50]} 11. Nd2 {[%emt 0:01:50]} Bxe2 {[%emt 0:04:28]} 12. Qxe2 {[%emt 0:00:06]} O-O {[%emt 0:00:38]} (12... Bxh2 13. g3 Bxg3 14. fxg3 $14) 13. Nf3 {[%emt 0:01:35]} Ne5 {[%emt 0:04:00]} 14. Nxe5 {[%emt 0:01:12]} Bxe5 {[%emt 0:01:52]} 15. g3 {[%emt 0:02:45]} c4 {[%emt 0:00:46]} 16. O-O {[%emt 0:00:11]} Rd3 {[%emt 0:00:37]} 17. Bg5 {[%emt 0:01:10]} h6 {[%emt 0:00:47]} 18. Be3 {[%emt 0:00:07]} Rfd8 {[%emt 0:00:55]} 19. a4 {[%emt 0:03:57]} a6 {[%emt 0:02:03]} 20. a5 {[%emt 0:01:28]} R8d7 {[%emt 0:05:22]} 21. Qh5 {[%emt 0:04:35]} Bd6 {[%emt 0:09:00]} 22. Rfe1 {[%emt 0:02:34]} Qc6 {[%emt 0:02:32]} 23. Qg4 {[%emt 0:04:06]} Kh8 {[%emt 0:02:15]} 24. Qh5 {[%emt 0:14:32]} Kg8 {[%emt 0:00:59]} (24... Qxe4 25. Bd4 Qg6 (25... Qh7 26. Rxe6 fxe6 27. Qe8+ $11) 26. Qxg6 fxg6 27. Rxe6 $14) 25. Qg4 {[%emt 0:01:26]} Kh8 {[%emt 0:00:08]} (25... Kh7 {is more complex.} 26. Bd4 g6 27. h4 Bc7) 26. Qh5 $1 {[%emt 0:00:39]} e5 {[%emt 0:03:28]} (26... Qxe4 $6 27. Bd4 Qh7 28. Rxe6 fxe6 29. Qe8+ $11) (26... Kh7 $17) 27. Qf5 {[%emt 0:02:55]} (27. Rad1 $1 $15) 27... Bc5 {[%emt 0:02:58]} (27... Bc7 $1 $17 28. Qh5 Qb5 (28... Qxe4 29. Bb6 $15)) 28. Bxc5 {[%emt 0:04:19]} (28. Qxe5 $11 {remains equal.} Bxe3 29. Rxe3) 28... Qxc5 $17 {[%emt 0:00:04]} 29. Re2 {[%emt 0:00:06]} Kg8 {[%emt 0:02:31]} 30. Kg2 {[%emt 0:05:53]} g6 {[%emt 0:00:35]} 31. Qf6 {[%emt 0:03:02]} R3d6 {[%emt 0:00:21]} 32. Qf3 {[%emt 0:02:32]} Rd3 {[%emt 0:00:11]} 33. Qf6 {[%emt 0:00:43]} R3d6 {[%emt 0:00:05]} 34. Qf3 {[%emt 0:00:02]} Kg7 {[%emt 0:00:14]} 35. Qe3 {[%emt 0:04:10]} Qb5 {[%emt 0:00:30]} 36. h4 {[%emt 0:02:53]} Rd3 {[%emt 0:01:03]} 37. Qb6 {[%emt 0:00:48]} Qxb6 {[%emt 0:01:40]} 38. axb6 {[%emt 0:00:02] [#]} Rd2 $1 {[%emt 0:00:35]} 39. Kf1 {[%emt 0:11:40]} Rxe2 {[%emt 0:00:32]} 40. Kxe2 {[%emt 0:00:00]} Rd6 {[%emt 0:00:00]} 41. Ra4 {[%emt 0:01:35]} Rxb6 {[%emt 0:00:20]} 42. Rxc4 {[%emt 0:02:43]} Rxb2+ {[%emt 0:00:06]} 43. Ke3 {[%emt 0:00:04]} Kf6 {[%emt 0:01:27]} 44. Rc8 {[%emt 0:01:10]} h5 {[%emt 0:02:36]} 45. Rc7 {[%emt 0:03:00]} (45. Rb8 $17) 45... Ke6 {[%emt 0:01:21]} (45... Rb6 $19 46. Rc5 Ke6) 46. Rc8 $17 {[%emt 0:05:29]} a5 {[%emt 0:04:55]} 47. Re8+ {[%emt 0:01:40]} (47. Rc5 $17) 47... Kd6 $19 {[%emt 0:00:35]} 48. f4 {[%emt 0:00:35]} (48. Ra8) 48... exf4+ $19 {[%emt 0:00:57]} 49. gxf4 {[%emt 0:00:14]} a4 {[%emt 0:03:52]} 50. Ra8 {[%emt 0:02:37]} b5 {[%emt 0:00:23]} 51. Ra7 {[%emt 0:00:24]} Rb3 {[%emt 0:09:23]} 52. Kd4 {[%emt 0:01:19]} (52. Kd3 $17 {keeps fighting.}) 52... a3 $19 {[%emt 0:04:08]} 53. Rxf7 $2 {[%emt 0:13:41] [#]} (53. f5 gxf5 54. exf5) 53... b4 $1 $19 {[%emt 0:00:34]} 54. e5+ {[%emt 0:03:45]} Ke6 {[%emt 0:01:12]} 55. Rf6+ {[%emt 0:00:06]} Ke7 {[%emt 0:00:04]} 56. Ra6 {[%emt 0:00:56]} Rxc3 {[%emt 0:00:38]} 57. Ra4 {[%emt 0:02:33]} Rc1 {[%emt 0:00:23]} 58. Kd5 {[%emt 0:00:10]} b3 {[%emt 0:01:08]} 59. Ra7+ {[%emt 0:00:10]} Kf8 {[%emt 0:00:29]} 60. e6 {[%emt 0:01:03]} b2 {[%emt 0:00:17]} 61. Ra8+ {[%emt 0:00:19]} Kg7 {[%emt 0:00:07]} 62. e7 {[%emt 0:00:13]} Re1 {[%emt 0:00:09]} ({Inferior is} 62... b1=B 63. e8=Q (63. e8=N+ Kf7 $17) 63... Ba2+ 64. Kd4 Rd1+ 65. Kc3 Rc1+ 66. Kd2) 0-1

[Event "Azerbaijan-ch 1st League 2025"]
[Site "Baku"]
[Date "2025.01.09"]
[Round "4.2"]
[White "Ibrahimli, Murad"]
[Black "Abdulkarimli, Eljan"]
[Result "1-0"]
[Annotator "TA"]
[ECO "D27"]
[WhiteElo "2415"]
[BlackElo "2163"]
[PlyCount "55"]
[EventDate "2025.01.05"]
[EventType "swiss"]
[EventCountry "AZE"]
[SourceTitle "playchess.com"]
[Source "ChessBase"]
[SourceQuality "1"]
[TimeControl "40/5400+30:1800+30"]

{[%evp 12,55,27,23,50,8,54,53,65,42,71,52,108,100,104,97,131,123,131,131,235,243,240,250,242,247,243,274,310,272,258,257,330,333,402,399,520,526,517,495,481,376,517,527,487,444]} 1. d4 {[%emt 0:00:41]} d5 {[%emt 0:02:34]} 2. c4 {[%emt 0:00:31]} dxc4 {[%emt 0:00:21]} 3. Nf3 {[%emt 0:00:46]} Nf6 {[%emt 0:00:23]} 4. e3 {[%emt 0:00:49]} e6 {[%emt 0:00:28]} 5. Bxc4 {[%emt 0:00:06]} c5 {[%emt 0:00:27]} 6. O-O {[%emt 0:00:14]} a6 {[%emt 0:00:41]} 7. b3 {[%emt 0:01:51]} Be7 {[%emt 0:04:47]} 8. Nbd2 {[%emt 0:03:50][%cal Bb1d2,Bd2e4,Be4g5][%mdl 32]} Nc6 {[%emt 0:03:07]} (8... b5 $11 {might be stronger.} 9. Be2 Nbd7) 9. dxc5 $14 {[%emt 0:00:16]} Bxc5 {[%emt 0:00:42]} 10. Bb2 {[%emt 0:00:04]} Be7 {[%emt 0:08:01]} 11. Qb1 {[%emt 0:00:41]} b6 {[%emt 0:05:46]} ({Better is} 11... b5 $14) 12. Rd1 $16 {[%emt 0:00:19]} Qc7 {[%emt 0:02:32]} 13. Ne4 {[%emt 0:00:43]} Bb7 {[%emt 0:05:35]} 14. Neg5 {[%emt 0:07:28][%cal Og5f7]} Nd8 {[%emt 0:10:49]} 15. Ne5 {[%emt 0:10:40] White has more active pieces. The black rooks are passive.} Bd5 {[%emt 0:05:32]} (15... b5 $16 {might work better.}) 16. Bxd5 $18 {[%emt 0:00:48]} exd5 {[%emt 0:01:02]} 17. Qf5 {[%emt 0:01:19]} Qc8 {[%emt 0:05:47] [#]} 18. Qd3 $1 {[%emt 0:00:50]} Qb7 {[%emt 0:07:57]} 19. Rac1 {[%emt 0:01:02]} Bd6 {[%emt 0:07:34]} 20. Qf5 {[%emt 0:07:02][%cal Oe3e4]} Qe7 {[%emt 0:08:54]} 21. Nc6 {[%emt 0:03:13]} Nxc6 {[%emt 0:05:35]} 22. Rxc6 {[%emt 0:00:24]} Rd8 {[%emt 0:01:27]} 23. Rc8 {[%emt 0:02:02] And now Rdc1 would win.} h6 {[%emt 0:05:50]} 24. Bxf6 {[%emt 0:01:44]} gxf6 {[%emt 0:00:52] Black is weak on the light squares} 25. Rxd8+ {[%emt 0:00:11]} Qxd8 {[%emt 0:02:10]} 26. Nf3 {[%emt 0:00:26]} ({Stronger than} 26. Qxd5 Bxh2+ 27. Kxh2 hxg5+ 28. Kg3 Qxd5 29. Rxd5 Ke7 $11) 26... Be7 {[%emt 0:01:54]} 27. Rxd5 {[%emt 0:00:12]} Qc7 {[%emt 0:00:25] ( -> ...Qc1+)} 28. g3 {[%emt 0:00:02]} 1-0

[Event "Azerbaijan-ch 1st League 2025"]
[Site "Baku"]
[Date "2025.01.09"]
[Round "4.3"]
[White "Aslanov, Umid"]
[Black "Davudov, Tunar"]
[Result "1-0"]
[Annotator "TA"]
[ECO "B40"]
[WhiteElo "2250"]
[BlackElo "2225"]
[PlyCount "141"]
[EventDate "2025.01.05"]
[EventType "swiss"]
[EventCountry "AZE"]
[SourceTitle "playchess.com"]
[Source "ChessBase"]
[SourceQuality "1"]
[TimeControl "40/5400+30:1800+30"]

{[%evp 91,141,216,402,0,0,0,0,0,0,0,0,0,0,0,0,0,0,0,307,307,433,417,3802,1833,1412,242,242,235,220,174,29960,29965,29973,29973,29979,29969,29954,0,29969,29966,29960,0,0,0,29985,29986,29989,29990,29990,29990,29993,29994]} 1. e4 {[%emt 0:00:07]} c5 {[%emt 0:00:33]} 2. Nf3 {[%emt 0:00:03]} e6 {[%emt 0:00:24]} 3. d4 {[%emt 0:00:10]} cxd4 {[%emt 0:00:29]} 4. Qxd4 {[%emt 0:00:19]} Nc6 {[%emt 0:01:06]} 5. Qe3 {[%emt 0:00:05]} Nf6 {[%emt 0:01:51]} 6. Nc3 {[%emt 0:00:05]} d6 {[%emt 0:04:34]} 7. b3 {[%emt 0:00:08]} Be7 {[%emt 0:07:16]} 8. Bb2 {[%emt 0:00:09]} O-O {[%emt 0:02:25]} 9. O-O-O {[%emt 0:00:17]} Qa5 {[%emt 0:01:36]} 10. h3 {[%emt 0:00:47]} Rb8 {[%emt 0:19:38]} 11. g4 {[%emt 0:00:13]} b5 {[%emt 0:03:06]} 12. g5 {[%emt 0:18:50]} Nd7 {[%emt 0:03:35]} 13. Kb1 {[%emt 0:02:56]} b4 {[%emt 0:04:51]} 14. Ne2 {[%emt 0:03:56]} Ba6 {[%emt 0:13:50]} 15. Ned4 {[%emt 0:05:13]} Rfc8 {[%emt 0:01:58]} 16. h4 {[%emt 0:06:23]} Bc4 {[%emt 0:31:18]} 17. Be2 Bxe2 {[%emt 0:00:00]} 18. Rhf1 {[%emt 0:01:03]} Rb6 19. Nxe2 {[%emt 0:03:20]} Ra6 {[%emt 0:00:00]} 20. Nc1 {[%emt 0:00:05]} Nde5 {[%emt 0:00:00]} 21. Nd2 {[%emt 0:03:44]} Qc7 {[%emt 0:00:00]} 22. f4 {[%emt 0:04:36]} Nd7 {[%emt 0:00:00]} 23. Nf3 {[%emt 0:03:58]} e5 {[%emt 0:00:00]} 24. h5 {[%emt 0:05:27]} exf4 {[%emt 0:04:00]} 25. Qxf4 {[%emt 0:00:20]} Nde5 {[%emt 0:00:00]} 26. Rf2 {[%emt 0:05:39]} Nxf3 {[%emt 0:01:00]} 27. Rxf3 {[%emt 0:02:06]} Ne5 {[%emt 0:00:00]} 28. Rf2 {[%emt 0:00:07]} Rf8 {[%emt 0:00:00]} 29. Rd5 {[%emt 0:05:02]} Rc6 {[%emt 0:00:00]} 30. h6 {[%emt 0:03:50]} g6 {[%emt 0:00:02]} 31. Nd3 {[%emt 0:00:09]} f6 {[%emt 0:00:39]} 32. gxf6 {[%emt 0:01:07]} Rxf6 {[%emt 0:00:05]} 33. Qg3 {[%emt 0:00:12]} Rxf2 {[%emt 0:00:26]} 34. Qxf2 {[%emt 0:00:04]} Nxd3 {[%emt 0:01:11]} 35. cxd3 {[%emt 0:00:14]} Qb6 {[%emt 0:00:36]} 36. Qg3 {[%emt 0:04:20]} Rc8 {[%emt 0:01:10]} 37. Rd4 {[%emt 0:05:17]} Qc6 {[%emt 0:00:47]} 38. Qg4 {[%emt 0:00:55]} Qc2+ {[%emt 0:00:25]} 39. Ka1 {[%emt 0:00:01]} Kf7 {[%emt 0:00:34]} 40. Rxb4 {[%emt 0:01:53]} Rc3 {[%emt 0:00:33]} 41. Qf3+ {[%emt 0:04:27]} Ke6 {[%emt 0:00:23]} 42. Rc4 {[%emt 0:06:53]} Rxc4 {[%emt 0:00:21]} 43. bxc4 {[%emt 0:00:05]} Kd7 {[%emt 0:09:33]} 44. a3 {[%emt 0:00:42]} a5 {[%emt 0:02:53]} 45. e5 {[%emt 0:03:29]} dxe5 {[%emt 0:06:30]} 46. Qd5+ {[%emt 0:09:24]} (46. Bxe5 Qc1+ 47. Ka2 Qxa3+ 48. Kb1 $11) (46. Qb7+ $142) 46... Ke8 $2 {[%emt 0:02:58] [#]} (46... Bd6 47. Qb5+ (47. Bxe5 Qc1+ 48. Ka2 Qxa3+ 49. Kb1 a4 $11) 47... Ke7) 47. Qg8+ $2 {[%emt 0:10:41]} (47. Qxa5 Qxd3 48. Qxe5 Qxc4 $11) (47. Bxe5 Qc1+ 48. Ka2 Qxa3+ 49. Kb1 Qb3+ 50. Bb2 Qd1+ 51. Bc1 Qb3+ 52. Bb2 Qd1+ 53. Bc1 Qb3+ 54. Bb2 $11) (47. Qxe5 Qxd3 48. Qh8+ (48. Qxa5 Qf1+ 49. Ka2 Qxc4+ 50. Ka1 Qf1+ 51. Ka2 Qc4+ 52. Ka1 Qd3 $11) 48... Bf8 $11 (48... Kd7 49. Qxh7 Qf1+ 50. Ka2 $11)) (47. Qa8+ $1 $18 Kd7 48. Qb7+ (48. Qxa5 Qxd3 49. Qb5+ Kd8 $11) 48... Ke8 49. Qb8+ (49. Bxe5 Qc1+ 50. Qb1 Qxa3+ 51. Qa2 Qxd3 $17) 49... Kd7 (49... Kf7 $2 50. Qh8 $18) 50. Qb5+ (50. Bxe5 Qc1+ 51. Qb1 Qxa3+ 52. Qa2 g5 $17) (50. Qxe5 Qxd3 51. Qxa5 Qf1+ 52. Ka2 Qxc4+ 53. Ka1 Qf1+ 54. Ka2 Qc4+ 55. Ka1 Qf1+ 56. Ka2 Qc4+ $11) 50... Kc8 51. Qe8+ (51. Bxe5 Qc1+ 52. Qb1 Qxa3+ 53. Qa2 Qxd3 $17) (51. Qxa5 Qxd3 52. Qb5 Kd8 $11) (51. Qxe5 a4 $18) 51... Bd8 52. Qe6+ (52. Qxe5 Qxd3 53. Qb5 Qe4 $11) (52. Bxe5 Qd1+ 53. Ka2 Qe2+ 54. Ka1 Qd1+ 55. Kb2 Qd2+ 56. Ka1 Qe1+ 57. Ka2 Qe2+ 58. Ka1 Qd1+ $11) 52... Kb7 53. Qd7+ (53. Qxe5 Qxd3 54. Qg7+ Kc6 $11) 53... Bc7 54. Qxh7 (54. Bxe5 Qd1+ 55. Ka2 Qd2+ 56. Bb2 Qxh6 $16)) 47... Kd7 $1 $11 {[%emt 0:00:26]} 48. Qxh7 {[%emt 0:00:45]} (48. Bxe5 $2 Qc1+ (48... Qxd3 49. Bb2 $11) 49. Ka2 Qxa3+ 50. Kb1 Qxd3+ 51. Ka2 a4 $19) (48. Qd5+ Bd6 $16) 48... a4 {[%emt 0:00:54]} 49. Qxg6 {[%emt 0:00:45]} (49. Bxe5 Qc1+ 50. Ka2 Qxa3+ 51. Kb1 Qxd3+ 52. Kc1 Qe3+ (52... Qxc4+ $2 53. Kb1 $19) 53. Kb1 Qe4+ (53... Qxe5 $2 54. Qxg6 Qe1+ 55. Kc2 $19) 54. Ka2 Qxc4+ (54... Qxe5 $2 55. Qxg6 Qe2+ 56. Kb1 $19) 55. Ka1 Qc1+ 56. Ka2 Qa3+ 57. Kb1 Qd3+ 58. Ka2 Qd5+ 59. Kb1 Qxe5 $19) (49. Qf7 $5 Qd1+ $8 50. Ka2 Qb3+ 51. Ka1 Qd1+ $11) 49... Qd1+ {[%emt 0:00:07]} 50. Ka2 {[%emt 0:00:02]} Qb3+ {[%emt 0:00:07]} 51. Kb1 {[%emt 0:00:05]} (51. Ka1 $5 Qd1+ $8 52. Ka2 Qb3+ 53. Kb1 Qd1+ 54. Bc1 Qb3+ 55. Bb2 $11) 51... Qd1+ {[%emt 0:05:46]} 52. Bc1 {[%emt 0:00:50]} (52. Ka2 $5 Qb3+ $8 53. Kb1 Qd1+ 54. Bc1 Qb3+ 55. Ka1 $11) 52... Bxa3 {[%emt 0:00:26]} 53. Qf7+ {[%emt 0:00:02]} Kd8 {[%emt 0:00:39]} 54. Qd5+ {[%emt 0:01:54]} Ke8 $2 {[%emt 0:04:19][%mdl 8192]} (54... Kc8 $11 {and Black has nothing to worry.} 55. Qc6+ Kd8 56. Qd5+ Kc8) 55. Qxe5+ $18 {[%emt 0:01:04]} Kf7 {[%emt 0:00:31]} (55... Kd7 {was necessary.} 56. Qc3 Bxc1 57. Qxc1 Qb3+ 58. Qb2 Qd1+ 59. Ka2 Qxd3) 56. Qf4+ $18 {[%emt 0:02:41]} Ke7 {[%emt 0:01:14]} (56... Ke8 $142 57. Qe3+ Kd8) 57. Qd2 $18 {[%emt 0:02:58]} Qb3+ {[%emt 0:00:04]} 58. Bb2 $2 {[%emt 0:00:06]} (58. Ka1 {h7 would kill now.} Bxc1 59. Qxc1 Qxd3 60. Qg5+ Ke8 61. Qb5+ Kf8 62. Qb4+ (62. Qxa4 Qc3+ 63. Kb1 Qe1+ 64. Kb2 Qd2+ 65. Qc2 Qxh6 $11) 62... Kf7 63. h7 (63. Qxa4 Qc3+ 64. Ka2 Qd2+ 65. Kb1 Qe1+ 66. Kc2 Qf2+ 67. Kb1 Qe1+ 68. Kc2 Qe2+ 69. Kc1 Qe1+ 70. Kc2 $11) 63... Qf1+ 64. Ka2 Qe2+ 65. Ka3 Qd3+ 66. Kxa4) 58... Bxb2 $18 {[%emt 0:01:09]} 59. Qxb2 {[%emt 0:00:04]} Qxd3+ {[%emt 0:00:10]} 60. Qc2 {[%emt 0:00:02]} Qf1+ $2 {[%emt 0:01:03]} (60... Qxc2+ 61. Kxc2 Kf7 62. c5 Kg6 63. c6 Kxh6 64. c7 Kg7 65. c8=Q (65. c8=R Kf7 $18)) (60... Qh3 $18) 61. Ka2 {[%emt 0:00:01]} Qh3 {[%emt 0:00:14]} 62. h7 {[%emt 0:00:09]} (62. Qxa4 Qxh6 63. Qa7+ Kd8 $11) 62... Kd6 {[%emt 0:00:31]} 63. c5+ {[%emt 0:00:20]} ({Less strong is} 63. Qxa4 Qxh7 64. Qa3+ Kc6 $11) 63... Kc7 {[%emt 0:00:51]} 64. Qxa4 $2 {[%emt 0:06:02]} (64. Kb1 Qf1+ 65. Kb2 Qh3 66. Qxa4 Qh2+ 67. Qc2 Qe5+ 68. Kb3 Qe3+ 69. Kb4 Qf4+ 70. Qc4) 64... Qh2+ $2 {[%emt 0:00:50][%mdl 8192] [#]} (64... Qg2+ $11 65. Ka3 Qf3+ 66. Kb2 Qf6+ 67. Kc1 Qh6+ 68. Kb2 Qf6+) 65. Ka3 $1 {[%emt 0:00:13]} Qh3+ {[%emt 0:00:27]} 66. Kb4 $2 {[%emt 0:00:13]} (66. Kb2 {mates} Qh2+ 67. Qc2 Qe5+ 68. Kb3 Qe3+ 69. Kb4 Qf4+ 70. Qc4 Qf6 71. Qd3 Qb2+ 72. Kc4 Qa2+ 73. Kd4 Qa1+ 74. Ke3 Qe5+ 75. Kf3 Qf6+ 76. Kg4 Qg7+ 77. Kh3) 66... Qg4+ $1 $11 {[%emt 0:00:34]} 67. Ka5 {[%emt 0:00:10]} Qh5 $2 {[%emt 0:00:28][%mdl 8192]} (67... Qf5 $11) 68. Qf4+ {[%emt 0:00:22]} Kb7 {[%emt 0:00:27]} 69. Qe4+ {[%emt 0:07:21]} Kc7 {[%emt 0:00:35]} 70. Qe7+ {[%emt 0:00:00]} Kb8 {[%emt 0:00:05]} 71. Kb6 {[%emt 0:00:00]} 1-0

[Event "Azerbaijan-ch 1st League 2025"]
[Site "Baku"]
[Date "2025.01.09"]
[Round "4.4"]
[White "Hamidov, Allahverdi"]
[Black "Orujov, Farid"]
[Result "1/2-1/2"]
[Annotator "TA"]
[ECO "E52"]
[WhiteElo "2200"]
[BlackElo "2301"]
[PlyCount "83"]
[EventDate "2025.01.05"]
[EventType "swiss"]
[EventCountry "AZE"]
[SourceTitle "playchess.com"]
[Source "ChessBase"]
[SourceQuality "1"]
[TimeControl "40/5400+30:1800+30"]

{[%evp 12,83,12,0,12,15,14,10,13,0,0,0,-4,-5,4,0,1,11,0,-27,8,-20,0,14,0,0,6,12,9,0,0,-5,0,0,0,0,-6,-11,-4,-6,0,-45,-54,-59,-65,-59,-68,-64,-70,-70,-47,-85,0,-58,0,-4,-1,0,-8,-16,-16,-16,-16,-109,-109,-123,0,0,0,0,0,0,0,0]} 1. d4 {[%emt 0:00:04]} Nf6 {[%emt 0:00:06]} 2. c4 {[%emt 0:00:11]} e6 {[%emt 0:00:06]} 3. Nc3 {[%emt 0:00:04]} Bb4 {[%emt 0:00:05]} 4. e3 {[%emt 0:00:06]} O-O {[%emt 0:00:05]} 5. Bd3 {[%emt 0:00:03]} d5 {[%emt 0:00:06]} 6. Nf3 {[%emt 0:00:07]} b6 {[%emt 0:00:05]} 7. O-O {[%emt 0:00:28]} Ba6 {[%emt 0:00:05]} 8. cxd5 {[%emt 0:00:45]} exd5 {[%emt 0:00:04]} 9. Bxa6 {[%emt 0:15:12]} Nxa6 {[%emt 0:00:04][%cal Bb8a6,Ba6c7,Bc7e6,Be6c5,Bc5d3][%mdl 32]} 10. Qe2 {[%emt 0:00:48]} Qc8 {[%emt 0:00:20]} 11. Bd2 {[%emt 0:00:22]} Re8 {[%emt 0:01:28]} 12. Rac1 {[%emt 0:01:28]} Bf8 {[%emt 0:01:32]} 13. Ne5 {[%emt 0:09:39]} c5 {[%emt 0:01:23]} 14. f4 {[%emt 0:01:28]} Nc7 {[%emt 0:02:04]} 15. b3 {[%emt 0:10:20]} Ne6 {[%emt 0:08:39]} 16. g4 {[%emt 0:25:04][%cal Bg2g4,Bg4g5][%mdl 32]} Qb7 {[%emt 0:02:23]} 17. g5 {[%emt 0:01:00]} Ne4 {[%emt 0:01:53]} 18. Nxe4 {[%emt 0:00:26]} dxe4 {[%emt 0:00:02]} 19. dxc5 {[%emt 0:01:16]} Nxc5 {[%emt 0:05:27]} 20. Bc3 {[%emt 0:01:09]} Nd3 {[%emt 0:01:27]} 21. Nxd3 {[%emt 0:00:48]} exd3 {[%emt 0:00:01]} 22. Qxd3 {[%emt 0:00:15]} Rad8 {[%emt 0:03:16]} 23. Bd4 {[%emt 0:00:25]} Bc5 {[%emt 0:12:12][%cal Oe8e3]} 24. Rcd1 {[%emt 0:03:55]} Re4 $36 {[%emt 0:13:47][%mdl 2048] Black fights for an advantage.} 25. Qc3 {[%emt 0:02:57][%csl LRc5,LRg7]} Qc8 {[%emt 0:04:38]} 26. b4 {[%emt 0:07:53]} Qg4+ {[%emt 0:05:54]} 27. Kh1 {[%emt 0:00:21]} Bxd4 {[%emt 0:01:05]} 28. Rxd4 {[%emt 0:02:59]} Rexd4 {[%emt 0:03:40]} 29. exd4 $15 {[%emt 0:00:06][%mdl 4096] Endgame KQR-KQR. White is a pawn up.} Qe2 {[%emt 0:00:02][%csl LRa2,LRf1] Repels Qe3} 30. Re1 {[%emt 0:01:30]} Qxa2 {[%emt 0:01:34]} 31. Kg1 {[%emt 0:00:05]} g6 {[%emt 0:02:09]} (31... h6 $17 32. gxh6 Qd5 (32... gxh6 33. Re3 $17)) 32. Re5 {[%emt 0:03:35]} (32. Qc6 $11) 32... Qb1+ {[%emt 0:00:38]} (32... a5 $1 $15 33. bxa5 bxa5) 33. Kg2 $11 {[%emt 0:00:33] [#]} a5 $1 {[%emt 0:06:24]} 34. bxa5 {[%emt 0:01:13]} bxa5 {[%emt 0:00:30]} 35. Qxa5 {[%emt 0:04:37]} Qc2+ {[%emt 0:05:08]} (35... Rxd4 36. Re8+ Kg7 37. Qe5+ f6 38. Qxf6#) 36. Kg3 {[%emt 0:00:54]} Qd3+ {[%emt 0:00:31]} (36... Rxd4 37. Re8+ Kg7 38. Qe5+ f6 39. Qxf6#) 37. Kg2 {[%emt 0:01:04]} (37. Kg4 $1 $11 {remains equal.} h5+ (37... Qxd4 38. Re1 $15) 38. gxh6 Qxd4 (38... Rxd4 39. Re8+ Kh7 40. Rh8+ Kxh8 41. Qe5+ f6 42. Qxf6+ Kh7 43. Qg7#) 39. Re1) 37... Rb8 $17 {[%emt 0:00:58]} 38. Qa2 {[%emt 0:02:21] Wards off Rb2+} Rb1 {[%emt 0:06:23]} ({Black should try} 38... Qxd4 $17 {Strongly threatening ...Rb2+.} 39. Qf2 Rb2 40. Re8+ Kg7) 39. Qe2 $11 {[%emt 0:00:50] Re8+ would kill now.} Qxd4 {[%emt 0:03:51][%cal Ob1b2]} 40. Re8+ {[%emt 0:00:00]} Kg7 {[%emt 0:00:00][%cal Ob1b2]} 41. Qe5+ {[%emt 0:00:17]} Qxe5 {[%emt 0:00:07]} 42. Rxe5 {[%emt 0:00:08]} 1/2-1/2